lending/lending_fUSD_20250408
["ID","MTS","AMOUNT","RATE_DAILY","PERIOD"]
[357527425,1744130777725,-1189.1912917,0.000438,90]
[357527426,1744130777755,-171.91799896,0.000438,120]
[357527427,1744130777783,-500.0,0.00043824,30]
[357527428,1744130777811,-500.0,0.00043835,30]
[357527429,1744130777839,-1000.0,0.00043835,120]
[357527430,1744130777868,-1000.0,0.00043835,120]
[357527431,1744130777896,-1000.0,0.00043835,120]
[357527432,1744130777928,-1000.0,0.00043835,120]
[357527433,1744130777955,-1000.0,0.00043835,120]
[357527434,1744130777982,-1000.0,0.00043835,120]
[357527435,1744130778013,-1000.0,0.00043835,120]
[357527436,1744130778042,-1000.0,0.00043835,120]
[357527437,1744130778072,-1000.0,0.00043835,120]
[357527438,1744130778103,-1000.0,0.00043835,120]
[357527439,1744130778133,-1000.0,0.00043835,120]
[357527440,1744130778164,-1000.0,0.00043835,120]
[357527441,1744130778193,-1000.0,0.00043835,120]
[357527442,1744130778221,-1000.0,0.00043835,120]
[357527443,1744130778251,-1000.0,0.00043835,120]
[357527444,1744130778280,-1000.0,0.00043835,120]
[357527445,1744130778309,-918.52292773,0.00043835,120]
[357527446,1744130778338,-1000.0,0.00043835,90]
[357527447,1744130778366,-1000.0,0.00043835,90]
[357527448,1744130778394,-1000.0,0.00043835,90]
[357527449,1744130778423,-1000.0,0.00043835,90]
[357527450,1744130778457,-1000.0,0.00043835,90]
[357527451,1744130778488,-1000.0,0.00043835,90]
[357527452,1744130778516,-1000.0,0.00043835,90]
[357527453,1744130778545,-1000.0,0.00043835,90]
[357527454,1744130778578,-1000.0,0.00043835,90]
[357527455,1744130778606,-1000.0,0.00043835,90]
[357527456,1744130778636,-1000.0,0.00043835,90]
[357527457,1744130778667,-1000.0,0.00043835,90]
[357527458,1744130778696,-842.63782869,0.00043835,90]
[357527459,1744130778725,-1000.0,0.00043835,120]
[357527460,1744130778757,-1000.0,0.00043835,120]
[357527461,1744130778786,-1000.0,0.00043835,120]
[357527462,1744130778815,-1000.0,0.00043835,120]
[357527463,1744130778844,-1000.0,0.00043835,120]
[357527464,1744130778874,-1000.0,0.00043835,120]
[357527465,1744130778902,-1000.0,0.00043835,120]
[357527466,1744130778933,-1000.0,0.00043835,120]
[357527467,1744130778961,-1000.0,0.00043835,120]
[357527468,1744130778991,-1000.0,0.00043835,120]
[357527469,1744130779022,-1000.0,0.00043835,120]
[357527470,1744130779051,-1000.0,0.00043835,120]
[357527471,1744130779084,-1000.0,0.00043835,120]
[357527472,1744130779115,-1000.0,0.00043835,120]
[357527473,1744130779147,-1000.0,0.00043835,120]
[357527474,1744130779190,-1000.0,0.00043835,120]
[357527475,1744130779231,-1000.0,0.00043835,120]
[357527476,1744130779279,-1000.0,0.00043835,120]
[357527477,1744130779323,-1000.0,0.00043835,120]
[357527478,1744130779362,-1000.0,0.00043835,120]
[357527479,1744130779406,-1000.0,0.00043835,120]
[357527480,1744130779451,-1000.0,0.00043835,120]
[357527481,1744130779497,-1000.0,0.00043835,120]
[357527482,1744130779538,-877.15661085,0.00043835,120]
[357527483,1744130779580,-700.0,0.00043851,30]
[357527484,1744130779622,-2110.0,0.00043883,30]
[357527485,1744130779664,-250.80899,0.00043888,30]
[357527486,1744130779697,-150.0,0.00043923,30]
[357527487,1744130779736,-1200.0,0.00043928,30]
[357527488,1744130779779,-150.0,0.00043977,120]
[357527489,1744130779815,-150.0,0.00043997,120]
[357527490,1744130779858,-1000.0,0.00044,120]
[357527491,1744130779894,-1000.0,0.00044,120]
[357527492,1744130779930,-900.0,0.00044,45]
[357527493,1744130779966,-800.0,0.00044,120]
[357527494,1744130780006,-151.49394904,0.00044,120]
[357527495,1744130780042,-282.0,0.00044,120]
[357527496,1744130780078,-3352.93308393,0.00044,30]
[357527497,1744130780115,-150.0,0.00044,120]
[357527498,1744130780149,-4088.05993175,0.00044,120]
[357527499,1744130780185,-150.0,0.00044054,30]
[357527500,1744130780220,-500.0,0.00044059,30]
[357527501,1744130780258,-250.80899,0.00044088,30]
[357527502,1744130780294,-30851.98,0.000441,60]
[357527503,1744130780330,-500.0,0.00044109,30]
[357527504,1744130780367,-1700.0,0.00044167,120]
[357527505,1744130780404,-150.0,0.00044186,30]
[357527506,1744130780450,-3577.85,0.000442,36]
[357527507,1744130780502,-3577.85,0.000442,36]
[357527508,1744130780549,-3577.85,0.000442,36]
[357527509,1744130780595,-3577.85,0.000442,36]
[357527510,1744130780640,-3577.85,0.000442,36]
[357527511,1744130780682,-3577.85,0.000442,36]
[357527512,1744130780723,-3577.85,0.000442,36]
[357527513,1744130780765,-3577.85,0.000442,36]
[357527514,1744130780806,-3577.85,0.000442,36]
[357527515,1744130780846,-3577.85,0.000442,36]
[357527516,1744130780887,-3577.85,0.000442,36]
[357527517,1744130780927,-3577.85,0.000442,36]
[357527518,1744130780964,-250.80899,0.00044288,30]
[357527519,1744130781005,-1200.0,0.00044288,30]
[357527520,1744130781042,-30851.98,0.000443,60]
[357527521,1744130781076,-24000.0,0.000443,30]
[357527522,1744130781111,-150.0,0.00044317,30]
[357527523,1744130781145,-500.0,0.00044366,30]
[357527524,1744130781179,-700.0,0.00044367,30]
[357527525,1744130781216,-500.0,0.00044383,30]
[357527526,1744130781251,-2180.81,0.00044383,30]
[357527527,1744130781286,-193.31050888,0.0004439,120]
[357527528,1744130781321,-500.0,0.00044394,30]
[357527529,1744130781356,-500.0,0.00044406,30]
[357527530,1744130781390,-150.0,0.00044449,30]
[357527531,1744130781426,-150.0,0.00044472,120]
[357527532,1744130781460,-150.0,0.00044473,120]
[357527533,1744130781497,-250.80899,0.00044488,30]
[357527534,1744130781533,-150.0,0.00044491,120]
[357527535,1744130781569,-249.88310749,0.000445,120]
[357527536,1744130781604,-1200.0,0.00044573,30]
[357527537,1744130781640,-150.0,0.0004458,30]
[357527538,1744130781674,-5105.0,0.000446,120]
[357527539,1744130781708,-535.97,0.00044628,120]
[357527540,1744130781742,-500.0,0.00044657,30]
[357527541,1744130781776,-250.80899,0.00044688,30]
[357527542,1744130781811,-500.0,0.00044697,30]
[357527543,1744130781845,-150.0,0.00044712,30]
[357527544,1744130781879,-1700.0,0.00044715,120]
[357527545,1744130781912,-500.0,0.00044717,30]
[357527546,1744130781946,-1200.0,0.00044758,30]
[357527547,1744130781982,-150.0,0.00044843,30]
[357527548,1744130782017,-250.80899,0.00044888,30]
[357527549,1744130782051,-697.52431456,0.000449,30]
[357527550,1744130782088,-500.0,0.00044931,30]
[357527551,1744130782114,-700.0,0.00044935,30]
[357527552,1744130782140,-700.0,0.00044942,30]
[357527553,1744130782167,-150.0,0.00044975,30]
[357527554,1744130782194,-2000.0,0.00044987,31]
[357527555,1744130782221,-900.0,0.00045,46]
[357527556,1744130782251,-786.0,0.00045,120]
[357527557,1744130782279,-740.9920019,0.00045,120]
[357527558,1744130782307,-200.0,0.00045,120]
[357527559,1744130782336,-658.0,0.00045,45]
[357527560,1744130782365,-159.6,0.00045,85]
[357527561,1744130782962,-48770.1166046,0.00045,120]
[357527562,1744130783004,-13000.0,0.00045,120]
[357527563,1744130783034,-1778.88233185,0.00045,120]
[357527564,1744130783062,-1000.0,0.00045,120]
[357527565,1744130783091,-419.0,0.00045,120]
[357527566,1744130783118,-222.13080755,0.00045,30]
[357527567,1744130783145,-537.0,0.00045,120]
[357527568,1744130783172,-2000.0,0.00045,120]
[357527569,1744130783198,-151.0,0.00045,120]
[357527570,1744130783224,-151.0,0.00045,120]
[357527571,1744130783256,-250.000001,0.00045,30]
[357527572,1744130783284,-507.07198503,0.00045,120]
[357527573,1744130783312,-8051.79488742,0.00045,120]
[357527574,1744130783341,-1693.94925394,0.00045,60]
[357527575,1744130783368,-1142.32353111,0.00045,120]
[357527576,1744130783395,-1705.1124023,0.00045,120]
[357527577,1744130783421,-21667.09817012,0.00045,30]
[357527578,1744130783449,-3000.0,0.00045,120]
[357527579,1744130783476,-150.0,0.0004501,120]
[357527580,1744130783506,-700.0,0.00045033,30]
[357527581,1744130783534,-700.0,0.00045077,30]
[357527582,1744130783561,-250.80899,0.00045088,30]
[357527583,1744130783588,-150.0,0.00045106,30]
[357527584,1744130783615,-500.0,0.00045194,30]
[357527585,1744130783643,-500.0,0.00045205,30]
[357527586,1744130783669,-1000.0,0.00045205,120]
[357527587,1744130783696,-500.0,0.00045209,30]
[357527588,1744130783723,-150.0,0.00045238,30]
[357527589,1744130783750,-1700.0,0.00045263,120]
[357527590,1744130783777,-250.80899,0.00045288,30]
[357527591,1744130783804,-150.0,0.000453,120]
[357527592,1744130783831,-168.0,0.00045308,90]
[357527593,1744130783858,-150.0,0.00045314,120]
[357527594,1744130783888,-150.0,0.00045347,120]
[357527595,1744130783915,-150.0,0.00045347,120]
[357527596,1744130783943,-150.0,0.00045369,30]
[357527597,1744130783970,-500.0,0.00045439,30]
[357527598,1744130784001,-1200.0,0.00045447,30]
[357527599,1744130784028,-150.0,0.00045451,120]
[357527600,1744130784056,-500.0,0.00045479,30]
[357527601,1744130784083,-250.80899,0.00045488,30]
[357527602,1744130784111,-150.0,0.00045501,30]
[357527603,1744130784144,-500.0,0.00045529,30]
[357527604,1744130784173,-150.0,0.00045554,120]
[357527605,1744130784208,-150.0,0.0004557,120]
[357527606,1744130784249,-932.76496867,0.000456,120]
[357527607,1744130784279,-150.0,0.00045632,30]
[357527608,1744130784309,-1200.0,0.00045654,30]
[357527609,1744130784339,-150.0,0.00045656,120]
[357527610,1744130784369,-3176.05570625,0.00045679,120]
[357527611,1744130784399,-250.80899,0.00045688,30]
[357527612,1744130784430,-150.0,0.00045743,120]
[357527613,1744130784460,-500.0,0.00045753,30]
[357527614,1744130784490,-150.0,0.00045764,30]
[357527615,1744130784524,-150.0,0.000458,120]
[357527616,1744130784552,-1700.0,0.00045811,120]
[357527617,1744130784581,-250.80899,0.00045888,30]
[357527618,1744130784607,-6179.90974616,0.0004589,120]
[357527619,1744130784635,-150.0,0.00045895,30]
[357527620,1744130784664,-2299.8688296,0.000459,119]
[357527621,1744130784701,-500.0,0.00045915,30]
[357527622,1744130784730,-700.0,0.00045947,30]
[357527623,1744130784762,-150.0,0.00045979,120]
[357527624,1744130784791,-900.0,0.00046,47]
[357527625,1744130784819,-800.0,0.00046,120]
[357527626,1744130784852,-1106.50149748,0.00046,120]
[357527627,1744130784882,-1004.91,0.00046,120]
[357527628,1744130784912,-2180.0,0.00046,120]
[357527629,1744130784941,-1240.0,0.00046,120]
[357527630,1744130784972,-150.0,0.00046,120]
[357527631,1744130785009,-381.45082395,0.00046,60]
[357527632,1744130785038,-195.82137413,0.00046,120]
[357527633,1744130785069,-500.0,0.00046027,30]
[357527634,1744130785099,-199.78002821,0.00046027,30]
[357527635,1744130785130,-1200.0,0.00046057,30]
[357527636,1744130785159,-250.80899,0.00046088,30]
[357527637,1744130785188,-500.0,0.00046104,30]
[357527638,1744130785217,-500.0,0.00046106,30]
[357527639,1744130785247,-150.0,0.00046159,120]
[357527640,1744130785277,-250.80899,0.00046288,30]
[357527641,1744130785306,-500.0,0.00046298,30]
[357527642,1744130785336,-1401.37329808,0.000463,120]
[357527643,1744130785364,-576.7725394,0.00046301,30]
[357527644,1744130785393,-1301.20278363,0.00046359,120]
[357527645,1744130785423,-655.29409121,0.00046466,120]
[357527646,1744130785452,-250.80899,0.00046488,30]
[357527647,1744130785488,-150.0,0.000465,120]
[357527648,1744130785522,-700.0,0.00046515,30]
[357527649,1744130785551,-1000.0,0.00046575,120]
[357527650,1744130785580,-320.0,0.000466,120]
[357527651,1744130785870,-150.0,0.00046604,120]
[357527652,1744130785921,-700.0,0.00046623,30]
[357527653,1744130785950,-250.80899,0.00046688,30]
[357527654,1744130785983,-1200.0,0.00046709,30]
[357527655,1744130786014,-150.0,0.00046717,120]
[357527656,1744130786045,-500.0,0.00046758,120]
[357527657,1744130786075,-500.0,0.00046767,30]
[357527658,1744130786104,-3007.98648926,0.0004682,30]
[357527659,1744130786134,-500.0,0.00046849,30]
[357527660,1744130786164,-150.0,0.0004685,120]
[357527661,1744130786192,-700.0,0.0004685,30]
[357527662,1744130786221,-1200.0,0.00046863,30]
[357527663,1744130786254,-500.0,0.00046916,30]
[357527664,1744130786283,-1200.0,0.0004696,30]
[357527665,1744130786313,-900.0,0.00047,48]
[357527666,1744130786342,-157.06850925,0.00047,120]
[357527667,1744130786373,-10000.0,0.00047,120]
[357527668,1744130786404,-591.44642801,0.00047,30]
[357527669,1744130786433,-1223.10428216,0.00047,120]
[357527670,1744130786462,-4707.61818515,0.00047,120]
[357527671,1744130786490,-250.80899,0.00047088,30]
[357527672,1744130786521,-500.0,0.00047123,30]
[357527673,1744130786550,-150.0,0.00047124,120]
[357527674,1744130786593,-500.0,0.00047164,120]
[357527675,1744130786631,-150.0,0.00047183,120]
[357527676,1744130786664,-241.18347553,0.00047218,30]
[357527677,1744130786697,-1200.0,0.0004725,30]
[357527678,1744130786730,-250.80899,0.00047288,30]
[357527679,1744130786764,-500.0,0.00047397,30]
[357527680,1744130786796,-162.36,0.00047398,120]
[357527681,1744130786827,-348.14,0.00047422,30]
[357527682,1744130786857,-250.80899,0.00047488,30]
[357527683,1744130786888,-1972.00532496,0.00047495,120]
[357527684,1744130786921,-378.0,0.000475,120]
[357527685,1744130786952,-218.74489779,0.000475,120]
[357527686,1744130786985,-500.0,0.0004752,30]
[357527687,1744130787022,-150.0,0.00047541,120]
[357527688,1744130787055,-500.0,0.0004758,30]
[357527689,1744130787091,-700.0,0.0004758,30]
[357527690,1744130787122,-500.0,0.00047642,30]
[357527691,1744130787155,-597.52435903,0.00047671,30]
[357527692,1744130787187,-3000.0,0.0004768,31]
[357527693,1744130787220,-250.80899,0.00047688,30]
[357527694,1744130787254,-150.0,0.00047711,120]
[357527695,1744130787285,-500.0,0.00047712,120]
[357527696,1744130787316,-500.0,0.00047773,30]
[357527697,1744130787349,-240.67684278,0.000478,120]
[357527698,1744130787382,-664.47244819,0.000478,120]
[357527699,1744130787414,-3000.0,0.0004786,31]
[357527700,1744130787446,-250.80899,0.00047888,30]
[357527701,1744130787480,-1200.0,0.00047937,30]
[357527702,1744130787511,-1000.0,0.00047945,120]
[357527703,1744130787547,-50000.0,0.00048,48]
[357527704,1744130787579,-124882.97451759,0.00048,90]
[357527705,1744130787610,-270.0,0.00048,120]
[357527706,1744130787640,-200.0,0.00048,30]
[357527707,1744130787670,-900.0,0.00048,49]
[357527708,1744130787700,-500.0,0.00048,120]
[357527709,1744130787729,-700.0,0.00048,120]
[357527710,1744130787760,-4436.65369068,0.00048,120]
[357527711,1744130787791,-170.0,0.00048,120]
[357527712,1744130787821,-14794.64368013,0.00048,30]
[357527713,1744130787851,-100895.2780784,0.00048,120]
[357527714,1744130787880,-595.62354897,0.00048,120]
[357527715,1744130787915,-3577.85,0.00048,45]
[357527716,1744130787950,-3577.85,0.00048,45]
[357527717,1744130787986,-3577.85,0.00048,45]
[357527718,1744130788026,-3577.85,0.00048,45]
[357527719,1744130788061,-3577.85,0.00048,45]
[357527720,1744130788098,-3577.85,0.00048,45]
[357527721,1744130788132,-3577.85,0.00048,45]
[357527722,1744130788172,-3577.85,0.00048,45]
[357527723,1744130788208,-3577.85,0.00048,45]
[357527724,1744130788247,-3577.85,0.00048,45]
[357527725,1744130788295,-3577.85,0.00048,45]
[357527726,1744130788334,-3577.85,0.00048,45]
[357527727,1744130788372,-3577.85,0.00048,45]
[357527728,1744130788411,-3577.85,0.00048,45]
[357527729,1744130788448,-3577.85,0.00048,45]
[357527730,1744130788486,-3577.85,0.00048,45]
[357527731,1744130788526,-3577.85,0.00048,45]
[357527732,1744130788563,-3577.85,0.00048,45]
[357527733,1744130788599,-3577.85,0.00048,45]
[357527734,1744130788634,-3577.85,0.00048,45]
[357527735,1744130788671,-3577.85,0.00048,45]
[357527736,1744130788706,-3577.85,0.00048,45]
[357527737,1744130788742,-3577.85,0.00048,45]
[357527738,1744130788783,-3577.85,0.00048,45]
[357527739,1744130788817,-700.0,0.00048016,30]
[357527740,1744130788850,-500.0,0.00048056,30]
[357527741,1744130788885,-150.0,0.00048087,120]
[357527742,1744130788925,-250.80899,0.00048088,30]
[357527743,1744130788962,-150.0,0.00048106,120]
[357527744,1744130788999,-1200.0,0.00048111,30]
[357527745,1744130789039,-700.0,0.00048131,30]
[357527746,1744130789071,-500.0,0.00048192,30]
[357527747,1744130789305,-150.0,0.00048197,120]
[357527748,1744130789355,-150.0,0.000482,120]
[357527749,1744130789384,-500.0,0.00048201,30]
[357527750,1744130789413,-700.0,0.00048217,30]
[357527751,1744130789441,-516.20568535,0.0004826,120]
[357527752,1744130789470,-250.80899,0.00048288,30]
[357527753,1744130789498,-1200.0,0.00048297,30]
[357527754,1744130789530,-500.0,0.00048313,30]
[357527755,1744130789557,-10000.0,0.000484,120]
[357527756,1744130789584,-500.0,0.00048433,30]
[357527757,1744130789610,-500.0,0.00048438,30]
[357527758,1744130789637,-3000.0,0.0004844,31]
[357527759,1744130789664,-150.0,0.00048482,120]
[357527760,1744130789692,-250.80899,0.00048488,30]
[357527761,1744130789720,-500.0,0.00048493,120]
[357527762,1744130789746,-500.0,0.00048498,30]
[357527763,1744130789777,-500.0,0.00048511,30]
[357527764,1744130789804,-614.0,0.000486,120]
[357527765,1744130789831,-269.09840516,0.000486,120]
[357527766,1744130789860,-500.0,0.00048622,30]
[357527767,1744130789888,-250.80899,0.00048688,30]
[357527768,1744130789916,-500.0,0.00048695,30]
[357527769,1744130789944,-1200.0,0.00048757,30]
[357527770,1744130789973,-1000.0,0.00048789,120]
[357527771,1744130790004,-326.84480977,0.000488,120]
[357527772,1744130790035,-499999.0,0.000488,120]
[357527773,1744130790064,-18830.38960757,0.000488,120]
[357527780,1744130842780,-12590.82,0.000411,60]
[357527781,1744130842816,-12590.82,0.000423,60]
[357527782,1744130842852,-500.0,0.0004295,30]
[357527783,1744130842887,-600.0,0.00043083,30]
[357527784,1744130842917,-12590.82,0.000432,60]
[357527785,1744130842946,-500.0,0.0004351,30]
[357527786,1744130842980,-600.0,0.00043828,30]
[357527787,1744130843015,-600.0,0.0004385,30]
[357527788,1744130843049,-600.0,0.0004405,30]
[357527789,1744130843086,-600.0,0.00044159,30]
[357527790,1744130843118,-600.0,0.00044321,30]
[357527791,1744130843148,-12590.82,0.000444,60]
[357527792,1744130843177,-600.0,0.00044474,30]
[357527793,1744130843205,-600.0,0.00044601,30]
[357527794,1744130843233,-500.0,0.00044959,30]
[357527795,1744130843262,-500.0,0.00045233,30]
[357527796,1744130843291,-150.0,0.00045466,120]
[357527797,1744130843598,-519.78198836,0.0004585,30]
[357527798,1744130843627,-12590.82,0.00046,60]
[357527799,1744130843656,-600.0,0.00046117,30]
[357527800,1744130843683,-500.0,0.0004626,30]
[357527801,1744130843710,-600.0,0.00046362,30]
[357527802,1744130843736,-600.0,0.00046384,30]
[357527803,1744130843763,-500.0,0.00046503,30]
[357527804,1744130843790,-600.0,0.00046557,30]
[357527805,1744130843820,-500.0,0.00046558,30]
[357527806,1744130843849,-503.4717606,0.00047136,30]
[357527807,1744130843876,-996.24592193,0.00047161,30]
[357527808,1744130843903,-780.83953472,0.00047445,30]
[357527809,1744130843930,-600.0,0.00047915,30]
[357527810,1744130843956,-600.0,0.0004799,30]
[357527811,1744130843984,-2088.33943134,0.00048,120]
[357527812,1744130844016,-500.0,0.00048103,30]
[357527813,1744130844045,-600.0,0.0004837,30]
[357527814,1744130844074,-600.0,0.00048589,30]
[357527815,1744130844104,-481168.61039243,0.000488,120]
[357527816,1744130844132,-499999.0,0.000488,120]
[357527817,1744130844162,-18575.99924606,0.000488,120]
[357527818,1744130844196,-150.0,0.00048815,120]
[357527819,1744130844224,-500.0,0.00048842,30]
[357527820,1744130844253,-1495.62581092,0.000489,120]
[357527821,1744130844281,-3071.0,0.0004896,32]
[357527822,1744130844312,-3000.0,0.0004896,31]
[357527823,1744130844342,-4667.30045453,0.00048998,120]
[357527824,1744130844376,-50000.0,0.00049,49]
[357527825,1744130844409,-900.0,0.00049,50]
[357527826,1744130844446,-21741.0447258,0.00049,120]
[357527827,1744130844483,-267.42050866,0.00049,120]
[357527828,1744130844515,-295.72926757,0.00049,120]
[357527829,1744130844546,-52585.6411347,0.00049,30]
[357527830,1744130844591,-535.97,0.00049106,120]
[357527831,1744130844621,-500.0,0.00049113,30]
[357527832,1744130844652,-500.0,0.00049148,30]
[357527833,1744130844681,-29984.985,0.00049221,120]
[357527834,1744130844710,-29984.985,0.00049221,120]
[357527835,1744130844739,-29984.985,0.00049221,120]
[357527836,1744130844767,-29984.985,0.00049221,120]
[357527837,1744130844799,-29984.985,0.00049221,120]
[357527838,1744130844834,-5000.0,0.0004931,120]
[357527839,1744130844863,-350.0,0.00049315,30]
[357527840,1744130844891,-422.96570273,0.00049315,120]
[357527841,1744130844918,-500.0,0.00049315,120]
[357527842,1744130844947,-500.0,0.00049315,120]
[357527843,1744130844974,-500.0,0.00049315,120]
[357527844,1744130845001,-500.0,0.00049315,120]
[357527845,1744130845032,-536.71441183,0.00049315,120]
[357527846,1744130845062,-500.0,0.00049315,120]
[357527847,1744130845092,-515.73474793,0.00049315,120]
[357527848,1744130845120,-500.0,0.00049315,120]
[357527849,1744130845148,-500.0,0.00049315,120]
[357527850,1744130845177,-500.0,0.00049315,120]
[357527851,1744130845208,-691.86613732,0.00049315,120]
[357527852,1744130845239,-691.86613732,0.00049315,120]
[357527853,1744130845269,-691.86613732,0.00049315,120]
[357527854,1744130845299,-691.86613732,0.00049315,120]
[357527855,1744130845332,-691.86613732,0.00049315,120]
[357527856,1744130845361,-691.86613732,0.00049315,120]
[357527857,1744130845390,-691.86613732,0.00049315,120]
[357527858,1744130845421,-691.86613732,0.00049315,120]
[357527859,1744130845453,-691.86613732,0.00049315,120]
[357527860,1744130845484,-691.86613732,0.00049315,120]
[357527861,1744130845517,-691.86613732,0.00049315,120]
[357527862,1744130845550,-691.86613732,0.00049315,120]
[357527863,1744130845592,-691.86613732,0.00049315,120]
[357527864,1744130845628,-691.86613732,0.00049315,120]
[357527865,1744130845662,-691.86613732,0.00049315,120]
[357527866,1744130845696,-691.86613732,0.00049315,120]
[357527867,1744130845728,-691.86613732,0.00049315,120]
[357527868,1744130845761,-691.86613732,0.00049315,120]
[357527869,1744130845794,-691.86613732,0.00049315,120]
[357527870,1744130845830,-691.86613732,0.00049315,120]
[357527871,1744130845861,-691.86613732,0.00049315,120]
[357527872,1744130845893,-691.86613732,0.00049315,120]
[357527873,1744130845923,-691.86613732,0.00049315,120]
[357527874,1744130845953,-691.86613732,0.00049315,120]
[357527875,1744130845983,-691.86613732,0.00049315,120]
[357527876,1744130846017,-691.86613732,0.00049315,120]
[357527877,1744130846045,-691.86613732,0.00049315,120]
[357527878,1744130846077,-691.86613732,0.00049315,120]
[357527879,1744130846109,-691.86613732,0.00049315,120]
[357527880,1744130846136,-691.86613732,0.00049315,120]
[357527881,1744130846165,-691.86613732,0.00049315,120]
[357527882,1744130846196,-691.86613732,0.00049315,120]
[357527883,1744130846227,-691.86613732,0.00049315,120]
[357527884,1744130846258,-691.86613732,0.00049315,120]
[357527885,1744130846288,-691.86613732,0.00049315,120]
[357527886,1744130846322,-691.86613732,0.00049315,120]
[357527887,1744130846352,-691.86613732,0.00049315,120]
[357527888,1744130846381,-691.86613732,0.00049315,120]
[357527889,1744130846409,-691.86613732,0.00049315,120]
[357527890,1744130846632,-691.86613732,0.00049315,120]
[357527891,1744130846662,-691.86613732,0.00049315,120]
[357527892,1744130846691,-691.86613732,0.00049315,120]
[357527893,1744130846718,-691.86613732,0.00049315,120]
[357527894,1744130846746,-691.86613732,0.00049315,120]
[357527895,1744130846773,-691.86613732,0.00049315,120]
[357527896,1744130846801,-691.86613732,0.00049315,120]
[357527897,1744130846831,-691.86613732,0.00049315,120]
[357527898,1744130846858,-691.86613732,0.00049315,120]
[357527899,1744130846887,-691.86613732,0.00049315,120]
[357527900,1744130846914,-691.86613732,0.00049315,120]
[357527901,1744130846942,-691.86613732,0.00049315,120]
[357527902,1744130846969,-691.86613732,0.00049315,120]
[357527903,1744130846997,-691.86613732,0.00049315,120]
[357527904,1744130847026,-691.86613732,0.00049315,120]
[357527905,1744130847056,-691.86613732,0.00049315,120]
[357527906,1744130847083,-691.86613732,0.00049315,120]
[357527907,1744130847112,-691.86613732,0.00049315,120]
[357527908,1744130847143,-691.86613732,0.00049315,120]
[357527909,1744130847170,-691.86613732,0.00049315,120]
[357527910,1744130847198,-691.86613732,0.00049315,120]
[357527911,1744130847224,-691.86613732,0.00049315,120]
[357527912,1744130847251,-691.86613732,0.00049315,120]
[357527913,1744130847279,-691.86613732,0.00049315,120]
[357527914,1744130847311,-691.86613732,0.00049315,120]
[357527915,1744130847337,-691.86613732,0.00049315,120]
[357527916,1744130847365,-691.86613732,0.00049315,120]
[357527917,1744130847391,-691.86613732,0.00049315,120]
[357527918,1744130847419,-691.86613732,0.00049315,120]
[357527919,1744130847448,-691.86613732,0.00049315,120]
[357527920,1744130847480,-691.86613732,0.00049315,120]
[357527921,1744130847513,-691.86613732,0.00049315,120]
[357527922,1744130847544,-691.86613732,0.00049315,120]
[357527923,1744130847578,-691.86613732,0.00049315,120]
[357527924,1744130847608,-691.86613732,0.00049315,120]
[357527925,1744130847638,-691.86613732,0.00049315,120]
[357527926,1744130847667,-6993.86421419,0.00049315,120]
[357527927,1744130847700,-6993.86421419,0.00049315,120]
[357527928,1744130847735,-6993.86421419,0.00049315,120]
[357527929,1744130847770,-6993.86421419,0.00049315,120]
[357527930,1744130847811,-6993.86421419,0.00049315,120]